[Event "94th Paris-ch  2019"]
[Site "Paris"]
[Date "2019.07.08"]
[Round "3.12"]
[White "Dutreuil, Raphael"]
[Black "Lux, Hugo de Melo"]
[Result "1-0"]
[ECO "A48"]
[WhiteElo "2302"]
[BlackElo "2231"]
[Annotator "NA"]
[PlyCount "79"]
[EventDate "2019.07.07"]
[EventType "swiss"]
[EventCountry "FRA"]
[SourceTitle "playchess.com"]
[Source "ChessBase"]
[SourceQuality "1"]
[TimeControl "5400+30"]

1. b3 {[%emt 0:06:23]} Nf6 {[%emt 0:02:27]} 2. Bb2 {[%emt 0:01:10]} g6 {[%emt 0:00:02]} 3. Nf3 {[%emt 0:04:41]} Bg7 {[%emt 0:00:18]} 4. e3 {[%emt 0:00:16]} O-O {[%emt 0:02:16]} 5. d4 {[%emt 0:00:43]} d6 {[%emt 0:01:13]} 6. Be2 {[%emt 0:01:03]} Nbd7 {[%emt 0:02:50]} 7. O-O {[%emt 0:01:38]} e5 {[%emt 0:06:37]} 8. dxe5 {[%emt 0:05:47]} Ng4 {[%emt 0:00:27]} 9. Qd2 {[%emt 0:08:05]} Ndxe5 {[%emt 0:07:18]} 10. Nxe5 {[%emt 0:05:21]} Nxe5 {[%emt 0:30:06]} 11. c4 {[%emt 0:03:13]} Qh4 {[%emt 0:02:32]} 12. Nc3 {[%emt 0:10:05]} Bg4 {[%emt 0:15:35]} 13. f3 {[%emt 0:10:10]} Bd7 {[%emt 0:01:03]} 14. Rae1 {[%emt 0:01:54]} Rae8 {[%emt 0:02:14]} 15. Nd5 {[%emt 0:07:05]} c6 {[%emt 0:05:26]} 16. Nc3 {[%emt 0:00:55]} g5 {[%emt 0:05:28]} 17. Ne4 {[%emt 0:07:39]} Re6 {[%emt 0:02:16]} 18. g3 {[%emt 0:00:15]} Qh6 {[%emt 0:00:04]} 19. Nf2 {[%emt 0:03:01]} f5 {[%emt 0:00:55]} 20. f4 {[%emt 0:03:15]} Nf7 {[%emt 0:00:08]} 21. Bxg7 {[%emt 0:01:09]} Qxg7 {[%emt 0:00:06]} 22. Bd3 {[%emt 0:00:29]} Re7 {[%emt 0:00:38]} 23. Re2 {[%emt 0:07:57]} Rfe8 {[%emt 0:00:21]} 24. Rfe1 {[%emt 0:00:27]} c5 {[%emt 0:02:38]} 25. Bb1 {[%emt 0:03:04]} h5 {[%emt 0:03:26]} 26. e4 {[%emt 0:01:10]} gxf4 {[%emt 0:00:04]} 27. Qxf4 {[%emt 0:00:11]} Ng5 {[%emt 0:00:39]} 28. Re3 {[%emt 0:04:44]} Bc6 {[%emt 0:01:24]} 29. h4 {[%emt 0:01:12]} Nxe4 {[%emt 0:00:40]} 30. Bxe4 {[%emt 0:00:22]} Bxe4 {[%emt 0:00:22]} 31. Qxd6 {[%emt 0:01:30]} Re6 {[%emt 0:03:31]} 32. Qf4 {[%emt 0:00:24]} Qg6 {[%emt 0:01:44]} 33. Nh3 {[%emt 0:00:28]} Bc6 {[%emt 0:00:48]} 34. Ng5 {[%emt 0:00:24]} Rxe3 {[%emt 0:00:25]} 35. Rxe3 {[%emt 0:00:01]} Rd8 {[%emt 0:01:26]} 36. Ne6 {[%emt 0:06:47]} Rd1+ {[%emt 0:00:07]} 37. Kf2 {[%emt 0:00:03]} Be4 {[%emt 0:00:58]} 38. Rxe4 {[%emt 0:00:27]} fxe4 {[%emt 0:00:32]} 39. Qf8+ {[%emt 0:00:05]} Kh7 {[%emt 0:00:01]} 40. Ng5+ {[%emt 0:00:06]} 1-0

[Event "94th Paris-ch  2019"]
[Site "Paris"]
[Date "2019.07.08"]
[Round "3.13"]
[White "Albaric, Etienne"]
[Black "Le Goff, Ronan"]
[Result "1/2-1/2"]
[ECO "C56"]
[WhiteElo "2225"]
[BlackElo "2281"]
[Annotator "NA"]
[PlyCount "107"]
[EventDate "2019.07.07"]
[EventType "swiss"]
[EventCountry "FRA"]
[SourceTitle "playchess.com"]
[Source "ChessBase"]
[SourceQuality "1"]
[TimeControl "5400+30"]

1. e4 {[%emt 0:00:00]} e5 {[%emt 0:00:00]} 2. Nf3 {[%emt 0:00:33]} Nc6 {[%emt 0:00:00]} 3. Bc4 {[%emt 0:00:18]} Nf6 {[%emt 0:00:00]} 4. d4 {[%emt 0:00:41]} exd4 {[%emt 0:00:09]} 5. e5 {[%emt 0:00:19]} d5 {[%emt 0:00:10]} 6. Bb5 {[%emt 0:00:06]} Ne4 {[%emt 0:00:07]} 7. Nxd4 {[%emt 0:00:09]} Bc5 {[%emt 0:01:09]} 8. Be3 {[%emt 0:04:07]} O-O {[%emt 0:04:00]} 9. Nxc6 {[%emt 0:04:03]} bxc6 {[%emt 0:00:22]} 10. Bxc5 {[%emt 0:00:04]} Nxc5 {[%emt 0:00:23]} 11. Bxc6 {[%emt 0:00:17]} Rb8 {[%emt 0:00:19]} 12. Qxd5 {[%emt 0:02:58]} Qe7 {[%emt 0:00:09]} 13. O-O {[%emt 0:01:09]} Rxb2 {[%emt 0:05:54]} 14. Na3 {[%emt 0:05:29]} Ne6 {[%emt 0:21:06]} 15. Nc4 {[%emt 0:07:08]} Rb8 {[%emt 0:02:16]} 16. Rfb1 {[%emt 0:20:57]} Rxb1+ {[%emt 0:01:34]} 17. Rxb1 {[%emt 0:00:19]} Rd8 {[%emt 0:00:17]} 18. Qa5 {[%emt 0:05:27]} Nd4 {[%emt 0:11:32]} 19. Be4 {[%emt 0:01:34]} Be6 {[%emt 0:08:18]} 20. Ne3 {[%emt 0:03:07]} h5 {[%emt 0:07:56]} 21. Rb7 {[%emt 0:13:13]} Bf5 {[%emt 0:05:19]} 22. Rxc7 {[%emt 0:18:29]} Qg5 {[%emt 0:04:32]} 23. Bd5 {[%emt 0:00:08]} Be6 {[%emt 0:03:18]} 24. Bxe6 {[%emt 0:05:41]} fxe6 {[%emt 0:00:08]} 25. Qa6 {[%emt 0:03:04]} Nf3+ {[%emt 0:01:33]} 26. Kf1 {[%emt 0:00:33]} Nxh2+ {[%emt 0:00:35]} 27. Ke2 {[%emt 0:00:44]} Qxe5 {[%emt 0:01:10]} 28. Rc8 {[%emt 0:00:42]} Rxc8 {[%emt 0:00:39]} 29. Qxc8+ {[%emt 0:00:01]} Kh7 {[%emt 0:00:18]} 30. Qd7 {[%emt 0:01:56]} Ng4 {[%emt 0:02:15]} 31. Qd3+ {[%emt 0:00:02]} Kh8 {[%emt 0:01:02]} 32. Qd8+ {[%emt 0:00:17]} Kh7 {[%emt 0:00:06]} 33. Qd3+ {[%emt 0:00:01]} Kh8 {[%emt 0:00:13]} 34. c3 {[%emt 0:00:03]} Qf4 {[%emt 0:01:26]} 35. Nxg4 {[%emt 0:01:14]} Qxg4+ {[%emt 0:00:06]} 36. Kf1 {[%emt 0:00:06]} e5 {[%emt 0:03:08]} 37. c4 {[%emt 0:00:37]} Qf4 {[%emt 0:00:50]} 38. g3 {[%emt 0:01:02]} Qg5 {[%emt 0:02:47]} 39. Qd5 {[%emt 0:00:10]} h4 {[%emt 0:00:25]} 40. Qa8+ {[%emt 0:01:32]} Kh7 {[%emt 0:00:06]} 41. Qe4+ {[%emt 0:00:05]} Kg8 {[%emt 0:00:26]} 42. Qxh4 {[%emt 0:00:24]} Qd2 {[%emt 0:00:34]} 43. Qe4 {[%emt 0:01:10]} Qxa2 {[%emt 0:00:35]} 44. c5 {[%emt 0:00:23]} Qe6 {[%emt 0:04:09]} 45. Qa8+ {[%emt 0:00:27]} Kh7 {[%emt 0:00:13]} 46. Qxa7 {[%emt 0:00:44]} Qd5 {[%emt 0:01:01]} 47. Kg1 {[%emt 0:00:22]} Qd1+ {[%emt 0:00:09]} 48. Kh2 {[%emt 0:01:18]} Qc2 {[%emt 0:01:08]} 49. Kg1 {[%emt 0:00:29]} Qd1+ {[%emt 0:00:06]} 50. Kg2 {[%emt 0:00:20]} Qd5+ {[%emt 0:00:10]} 51. Kh2 {[%emt 0:00:05]} Qd4 {[%emt 0:00:37]} 52. Kg2 {[%emt 0:00:52]} Qd5+ {[%emt 0:00:09]} 53. Kf1 {[%emt 0:00:41]} Qd1+ {[%emt 0:00:19]} 54. Kg2 {[%emt 0:00:01]} 1/2-1/2

[Event "94th Paris-ch  2019"]
[Site "Paris"]
[Date "2019.07.08"]
[Round "3.14"]
[White "Akshat, Khamparia"]
[Black "Gervasio, Ricardo"]
[Result "1-0"]
[ECO "D37"]
[WhiteElo "2398"]
[BlackElo "2223"]
[Annotator "NA"]
[PlyCount "61"]
[EventDate "2019.07.07"]
[EventType "swiss"]
[EventCountry "FRA"]
[SourceTitle "playchess.com"]
[Source "ChessBase"]
[SourceQuality "1"]
[TimeControl "5400+30"]

1. d4 {[%emt 0:01:20]} d5 {[%emt 0:01:31]} 2. Nf3 {[%emt 0:00:00]} Nf6 {[%emt 0:00:33]} 3. c4 {[%emt 0:00:00]} e6 {[%emt 0:00:12]} 4. Nc3 {[%emt 0:00:00]} Be7 {[%emt 0:00:20]} 5. Bf4 {[%emt 0:00:49]} Nh5 {[%emt 0:04:56]} 6. Be5 {[%emt 0:03:46]} f6 {[%emt 0:00:27]} 7. Bg3 {[%emt 0:00:17]} f5 {[%emt 0:00:07]} 8. Be5 {[%emt 0:04:40]} c6 {[%emt 0:03:19]} 9. e3 {[%emt 0:01:00]} O-O {[%emt 0:01:11]} 10. Bd3 {[%emt 0:04:34]} Nd7 {[%emt 0:02:43]} 11. Qc2 {[%emt 0:03:37]} Nhf6 {[%emt 0:11:53]} 12. cxd5 {[%emt 0:05:24]} Nxd5 {[%emt 0:00:43]} 13. Nxd5 {[%emt 0:03:29]} cxd5 {[%emt 0:00:26]} 14. Bc7 {[%emt 0:02:16]} Qe8 {[%emt 0:04:29]} 15. O-O {[%emt 0:01:14]} Qh5 {[%emt 0:05:20]} 16. Rac1 {[%emt 0:03:38]} g5 {[%emt 0:11:08]} 17. Ne5 {[%emt 0:03:32]} Nf6 {[%emt 0:01:33]} 18. Qb3 {[%emt 0:06:06]} Ne8 {[%emt 0:04:29]} 19. Ba5 {[%emt 0:07:57]} Rf6 {[%emt 0:01:20]} 20. Rxc8 {[%emt 0:06:28]} Rxc8 {[%emt 0:00:29]} 21. Qxb7 {[%emt 0:00:04]} Rh6 {[%emt 0:01:05]} 22. h3 {[%emt 0:00:53]} Rc7 {[%emt 0:18:31]} 23. Bxc7 {[%emt 0:01:26]} g4 {[%emt 0:00:11]} 24. Be2 {[%emt 0:02:16]} Bf8 {[%emt 0:08:47]} 25. Bb8 {[%emt 0:03:45]} Nf6 {[%emt 0:02:33]} 26. Rc1 {[%emt 0:03:26]} Ne4 {[%emt 0:04:08]} 27. Rc8 {[%emt 0:01:00]} Rf6 {[%emt 0:06:02]} 28. Nd7 {[%emt 0:01:18]} Qg6 {[%emt 0:03:19]} 29. Nxf6+ {[%emt 0:00:51]} Qxf6 {[%emt 0:00:01]} 30. Be5 {[%emt 0:01:46]} Qh6 {[%emt 0:00:23]} 31. hxg4 {[%emt 0:01:25]} 1-0

[Event "94th Paris-ch  2019"]
[Site "Paris"]
[Date "2019.07.08"]
[Round "3.15"]
[White "O'Sullivan, Thomas"]
[Black "Anand Nadar"]
[Result "1/2-1/2"]
[ECO "E35"]
[WhiteElo "2291"]
[BlackElo "2358"]
[Annotator "NA"]
[PlyCount "73"]
[EventDate "2019.07.07"]
[EventType "swiss"]
[EventCountry "FRA"]
[SourceTitle "playchess.com"]
[Source "ChessBase"]
[SourceQuality "1"]
[TimeControl "5400+30"]

1. d4 {[%emt 0:19:13]} Nf6 {[%emt 0:00:14]} 2. c4 {[%emt 0:00:43]} e6 {[%emt 0:00:11]} 3. Nc3 {[%emt 0:00:12]} Bb4 {[%emt 0:00:11]} 4. Qc2 {[%emt 0:00:18]} d5 {[%emt 0:00:57]} 5. cxd5 {[%emt 0:00:09]} exd5 {[%emt 0:00:13]} 6. Bg5 {[%emt 0:00:09]} h6 {[%emt 0:04:48]} 7. Bh4 {[%emt 0:00:10]} Nbd7 {[%emt 0:01:10]} 8. e3 {[%emt 0:01:03]} c5 {[%emt 0:01:48]} 9. dxc5 {[%emt 0:04:12]} Qa5 {[%emt 0:01:52]} 10. Nge2 {[%emt 0:13:51]} g5 {[%emt 0:14:52]} 11. Bg3 {[%emt 0:00:16]} Ne4 {[%emt 0:00:25]} 12. a3 {[%emt 0:08:16]} Ndxc5 {[%emt 0:07:37]} 13. Rc1 {[%emt 0:05:08]} Bxc3+ {[%emt 0:03:45]} 14. Nxc3 {[%emt 0:00:06]} Bf5 {[%emt 0:09:14]} 15. Be5 {[%emt 0:08:27]} f6 {[%emt 0:19:19]} 16. Bd4 {[%emt 0:18:05]} Ng3 {[%emt 0:14:20]} 17. Qd1 {[%emt 0:00:24]} Nxh1 {[%emt 0:00:05]} 18. b4 {[%emt 0:01:23]} Qxa3 {[%emt 0:00:19]} 19. Bxc5 {[%emt 0:00:42]} Kf7 {[%emt 0:02:55]} 20. Nb5 {[%emt 0:07:32]} Qb2 {[%emt 0:01:58]} 21. Nd6+ {[%emt 0:00:46]} Kg6 {[%emt 0:01:34]} 22. Be2 {[%emt 0:00:36]} b6 {[%emt 0:02:46]} 23. Nxf5 {[%emt 0:04:42]} bxc5 {[%emt 0:00:01]} 24. bxc5 {[%emt 0:02:15]} Nxf2 {[%emt 0:06:30]} 25. Kxf2 {[%emt 0:02:07]} Kxf5 {[%emt 0:00:01]} 26. Qxd5+ {[%emt 0:00:07]} Kg6 {[%emt 0:00:07]} 27. Rb1 {[%emt 0:00:39]} Qxb1 {[%emt 0:01:38]} 28. Bd3+ {[%emt 0:00:00]} Qxd3 {[%emt 0:00:06]} 29. Qxd3+ {[%emt 0:00:01]} Kg7 {[%emt 0:00:07]} 30. Qd7+ {[%emt 0:00:01]} Kg6 {[%emt 0:00:12]} 31. Qd3+ {[%emt 0:00:00]} Kg7 {[%emt 0:00:04]} 32. Qd7+ {[%emt 0:01:07]} Kg6 {[%emt 0:00:01]} 33. h4 {[%emt 0:00:46]} gxh4 {[%emt 0:00:16]} 34. Qg4+ {[%emt 0:00:32]} Kf7 {[%emt 0:00:01]} 35. Qd7+ {[%emt 0:00:16]} Kg6 {[%emt 0:00:04]} 36. Qg4+ {[%emt 0:00:07]} Kf7 {[%emt 0:00:02]} 37. Qd7+ {[%emt 0:01:31]} 1/2-1/2

[Event "94th Paris-ch  2019"]
[Site "Paris"]
[Date "2019.07.08"]
[Round "3.16"]
[White "Stephan, Victor"]
[Black "Eden, James"]
[Result "1-0"]
[ECO "A11"]
[WhiteElo "2358"]
[BlackElo "2343"]
[Annotator "NA"]
[PlyCount "79"]
[EventDate "2019.07.07"]
[EventType "swiss"]
[EventCountry "FRA"]
[SourceTitle "playchess.com"]
[Source "ChessBase"]
[SourceQuality "1"]
[TimeControl "5400+30"]

1. Nf3 {[%emt 0:03:07]} d5 {[%emt 0:00:00]} 2. c4 {[%emt 0:00:22]} c6 {[%emt 0:00:43]} 3. g3 {[%emt 0:00:44]} Nf6 {[%emt 0:01:07]} 4. Bg2 {[%emt 0:00:28]} dxc4 {[%emt 0:02:33]} 5. Na3 {[%emt 0:03:41]} e5 {[%emt 0:01:03]} 6. Qc2 {[%emt 0:02:56]} Bxa3 {[%emt 0:20:48]} 7. bxa3 {[%emt 0:00:11]} Qd5 {[%emt 0:00:36]} 8. Bb2 {[%emt 0:03:11]} Nbd7 {[%emt 0:01:50]} 9. O-O {[%emt 0:01:11]} e4 {[%emt 0:02:49]} 10. Nd4 {[%emt 0:02:17]} O-O {[%emt 0:07:36]} 11. f3 {[%emt 0:02:12]} Qh5 {[%emt 0:10:08]} 12. fxe4 {[%emt 0:02:59]} Re8 {[%emt 0:01:30]} 13. Rf5 {[%emt 0:07:31]} Qg6 {[%emt 0:05:18]} 14. Raf1 {[%emt 0:01:07]} Ne5 {[%emt 0:01:36]} 15. R5f4 {[%emt 0:04:40]} Bg4 {[%emt 0:06:11]} 16. Nf3 {[%emt 0:17:05]} Bxf3 {[%emt 0:08:37]} 17. Bxf3 {[%emt 0:00:18]} Nfd7 {[%emt 0:04:49]} 18. Bg2 {[%emt 0:01:53]} Qe6 {[%emt 0:01:43]} 19. Qc3 {[%emt 0:02:22]} f6 {[%emt 0:00:45]} 20. Rh4 {[%emt 0:06:53]} Nf8 {[%emt 0:02:32]} 21. Bh3 {[%emt 0:03:16]} Qd6 {[%emt 0:00:19]} 22. Bf5 {[%emt 0:02:36]} Rad8 {[%emt 0:01:04]} 23. Rd1 {[%emt 0:02:07]} b5 {[%emt 0:02:13]} 24. Qe3 {[%emt 0:01:49]} Re7 {[%emt 0:03:44]} 25. Kg2 {[%emt 0:02:58]} Neg6 {[%emt 0:03:15]} 26. Rg4 {[%emt 0:01:36]} Kf7 {[%emt 0:01:56]} 27. d4 {[%emt 0:05:00]} h5 {[%emt 0:01:24]} 28. Rxg6 {[%emt 0:01:47]} Nxg6 {[%emt 0:00:06]} 29. Qf3 {[%emt 0:00:24]} Rh8 {[%emt 0:00:51]} 30. Rf1 {[%emt 0:00:19]} c3 {[%emt 0:04:15]} 31. Bxc3 {[%emt 0:02:42]} Qxa3 {[%emt 0:00:51]} 32. e5 {[%emt 0:00:08]} Qxa2 {[%emt 0:03:08]} 33. Bb4 {[%emt 0:03:08]} Qd5 {[%emt 0:00:34]} 34. Bxg6+ {[%emt 0:02:29]} Kxg6 {[%emt 0:00:11]} 35. Qxd5 {[%emt 0:00:53]} cxd5 {[%emt 0:00:07]} 36. Bxe7 {[%emt 0:00:04]} fxe5 {[%emt 0:00:50]} 37. dxe5 {[%emt 0:00:06]} a5 {[%emt 0:00:10]} 38. Bd6 {[%emt 0:00:53]} Re8 {[%emt 0:01:15]} 39. Rb1 {[%emt 0:00:32]} b4 {[%emt 0:00:18]} 40. Ra1 {[%emt 0:00:10]} 1-0

[Event "94th Paris-ch  2019"]
[Site "Paris"]
[Date "2019.07.08"]
[Round "3.18"]
[White "Tomasi, Albert"]
[Black "Jeet, Jain"]
[Result "1-0"]
[ECO "C78"]
[WhiteElo "2300"]
[BlackElo "2258"]
[Annotator "NA"]
[PlyCount "77"]
[EventDate "2019.07.07"]
[EventType "swiss"]
[EventCountry "FRA"]
[SourceTitle "playchess.com"]
[Source "ChessBase"]
[SourceQuality "1"]
[TimeControl "5400+30"]

1. e4 {[%emt 0:00:24]} e5 {[%emt 0:00:00]} 2. Nf3 {[%emt 0:00:20]} Nc6 {[%emt 0:00:17]} 3. Bb5 {[%emt 0:00:46]} a6 {[%emt 0:00:20]} 4. Ba4 {[%emt 0:00:06]} Nf6 {[%emt 0:00:21]} 5. O-O {[%emt 0:00:50]} b5 {[%emt 0:00:52]} 6. Bb3 {[%emt 0:00:08]} Bc5 {[%emt 0:00:12]} 7. c3 {[%emt 0:00:41]} d6 {[%emt 0:00:09]} 8. a4 {[%emt 0:04:08]} Rb8 {[%emt 0:01:11]} 9. d4 {[%emt 0:02:23]} Bb6 {[%emt 0:00:07]} 10. Qd3 {[%emt 0:03:09]} Bd7 {[%emt 0:02:18]} 11. Bg5 {[%emt 0:05:14]} h6 {[%emt 0:08:46]} 12. Bh4 {[%emt 0:00:18]} O-O {[%emt 0:06:38]} 13. axb5 {[%emt 0:20:19]} axb5 {[%emt 0:00:20]} 14. Na3 {[%emt 0:03:16]} Qe7 {[%emt 0:15:25]} 15. Rfe1 {[%emt 0:03:26]} Na5 {[%emt 0:07:26]} 16. Ba2 {[%emt 0:10:14]} c5 {[%emt 0:01:05]} 17. dxe5 {[%emt 0:02:03]} dxe5 {[%emt 0:00:03]} 18. Nxb5 {[%emt 0:00:51]} Bd8 {[%emt 0:10:07]} 19. c4 {[%emt 0:19:51]} g5 {[%emt 0:04:28]} 20. Bg3 {[%emt 0:00:25]} Nc6 {[%emt 0:04:15]} 21. Bb1 {[%emt 0:08:02]} Nh5 {[%emt 0:04:29]} 22. Nxe5 {[%emt 0:03:23]} Nxe5 {[%emt 0:06:55]} 23. Bxe5 {[%emt 0:00:15]} Qxe5 {[%emt 0:00:20]} 24. Qxd7 {[%emt 0:00:06]} Nf4 {[%emt 0:01:27]} 25. Qf5 {[%emt 0:02:42]} Qxb2 {[%emt 0:04:07]} 26. e5 {[%emt 0:00:17]} Ng6 {[%emt 0:00:06]} 27. Ra6 {[%emt 0:00:13]} Rb7 {[%emt 0:07:02]} 28. e6 {[%emt 0:00:53]} Kh8 {[%emt 0:01:05]} 29. Rf1 {[%emt 0:04:48]} Re7 {[%emt 0:05:20]} 30. Nd6 {[%emt 0:03:58]} fxe6 {[%emt 0:04:05]} 31. Qxg6 {[%emt 0:00:21]} Rf6 {[%emt 0:00:44]} 32. Qc2 {[%emt 0:01:07]} Qb8 {[%emt 0:00:09]} 33. Ne4 {[%emt 0:00:21]} Rf5 {[%emt 0:00:13]} 34. Qc3+ {[%emt 0:00:23]} e5 {[%emt 0:00:45]} 35. Rxh6+ {[%emt 0:00:19]} Kg7 {[%emt 0:00:29]} 36. Qh3 {[%emt 0:00:22]} Ref7 {[%emt 0:00:47]} 37. Nd6 {[%emt 0:00:20]} Rxf2 {[%emt 0:00:14]} 38. Rg6+ {[%emt 0:00:08]} Kf8 {[%emt 0:00:16]} 39. Qh8+ {[%emt 0:00:06]} 1-0

[Event "94th Paris-ch  2019"]
[Site "Paris"]
[Date "2019.07.08"]
[Round "3.19"]
[White "Ojas Kulkarni"]
[Black "Cotonnec, Melkior"]
[Result "1/2-1/2"]
[ECO "A36"]
[WhiteElo "2251"]
[BlackElo "2293"]
[Annotator "NA"]
[PlyCount "95"]
[EventDate "2019.07.07"]
[EventType "swiss"]
[EventCountry "FRA"]
[SourceTitle "playchess.com"]
[Source "ChessBase"]
[SourceQuality "1"]
[TimeControl "5400+30"]

1. c4 {[%emt 0:00:00]} Nf6 {[%emt 0:04:31]} 2. g3 {[%emt 0:00:00]} g6 {[%emt 0:01:25]} 3. Bg2 {[%emt 0:00:00]} Bg7 {[%emt 0:00:03]} 4. Nc3 {[%emt 0:00:00]} d6 {[%emt 0:00:33]} 5. e4 {[%emt 0:00:00]} O-O {[%emt 0:01:21]} 6. Nge2 {[%emt 0:00:04]} c5 {[%emt 0:01:05]} 7. O-O {[%emt 0:00:08]} Nc6 {[%emt 0:00:06]} 8. d3 {[%emt 0:00:04]} Ne8 {[%emt 0:01:25]} 9. Be3 {[%emt 0:00:06]} Nc7 {[%emt 0:00:14]} 10. d4 {[%emt 0:00:04]} cxd4 {[%emt 0:01:23]} 11. Nxd4 {[%emt 0:00:07]} Ne6 {[%emt 0:05:14]} 12. Nde2 {[%emt 0:00:06]} a6 {[%emt 0:04:38]} 13. Qc2 {[%emt 0:21:58]} Bd7 {[%emt 0:05:35]} 14. Nd5 {[%emt 0:09:19]} Ned4 {[%emt 0:23:48]} 15. Nxd4 {[%emt 0:01:13]} Bxd4 {[%emt 0:01:53]} 16. Qd2 {[%emt 0:01:26]} Bxe3 {[%emt 0:01:23]} 17. Qxe3 {[%emt 0:00:08]} Rb8 {[%emt 0:16:55]} 18. Rfd1 {[%emt 0:04:22]} b6 {[%emt 0:04:27]} 19. Rac1 {[%emt 0:03:41]} Be6 {[%emt 0:09:44]} 20. f4 {[%emt 0:00:48]} f6 {[%emt 0:04:55]} 21. b4 {[%emt 0:07:18]} Qe8 {[%emt 0:03:40]} 22. a3 {[%emt 0:00:48]} Bxd5 {[%emt 0:00:58]} 23. exd5 {[%emt 0:01:20]} Nd8 {[%emt 0:00:03]} 24. Re1 {[%emt 0:00:25]} Rf7 {[%emt 0:00:44]} 25. c5 {[%emt 0:03:12]} bxc5 {[%emt 0:00:17]} 26. bxc5 {[%emt 0:00:02]} dxc5 {[%emt 0:00:16]} 27. d6 {[%emt 0:01:07]} e6 {[%emt 0:00:25]} 28. Qxc5 {[%emt 0:00:09]} Qb5 {[%emt 0:01:02]} 29. Red1 {[%emt 0:18:02]} Qxc5+ {[%emt 0:01:42]} 30. Rxc5 {[%emt 0:01:08]} Rb6 {[%emt 0:01:13]} 31. Rc7 {[%emt 0:00:01]} Kf8 {[%emt 0:00:35]} 32. Be4 {[%emt 0:05:33]} Kg7 {[%emt 0:02:43]} 33. Bc2 {[%emt 0:02:51]} Rxd6 {[%emt 0:00:17]} 34. Rxd6 {[%emt 0:02:54]} Rxc7 {[%emt 0:00:01]} 35. Bd3 {[%emt 0:00:06]} Nb7 {[%emt 0:00:44]} 36. Rxa6 {[%emt 0:00:41]} Nc5 {[%emt 0:00:01]} 37. Rd6 {[%emt 0:00:15]} Ra7 {[%emt 0:00:15]} 38. Bc4 {[%emt 0:00:21]} Rxa3 {[%emt 0:01:25]} 39. Bxe6 {[%emt 0:00:10]} Ra6 {[%emt 0:01:49]} 40. Rxa6 {[%emt 0:00:09]} Nxa6 {[%emt 0:00:01]} 41. Bc4 {[%emt 0:00:31]} Nc5 {[%emt 0:00:52]} 42. Kg2 {[%emt 0:00:12]} g5 {[%emt 0:00:31]} 43. fxg5 {[%emt 0:00:09]} fxg5 {[%emt 0:00:02]} 44. Be2 {[%emt 0:00:20]} Nd7 {[%emt 0:00:56]} 45. h4 {[%emt 0:00:09]} h6 {[%emt 0:00:20]} 46. hxg5 {[%emt 0:00:31]} hxg5 {[%emt 0:00:03]} 47. Kf3 {[%emt 0:00:25]} Ne5+ {[%emt 0:00:09]} 48. Ke4 {[%emt 0:00:11]} 1/2-1/2

[Event "94th Paris-ch  2019"]
[Site "Paris"]
[Date "2019.07.08"]
[Round "3.20"]
[White "Manoeuvre, Antoine"]
[Black "Girel, Joseph"]
[Result "1-0"]
[ECO "E60"]
[WhiteElo "2325"]
[BlackElo "2215"]
[Annotator "NA"]
[PlyCount "49"]
[EventDate "2019.07.07"]
[EventType "swiss"]
[EventCountry "FRA"]
[SourceTitle "playchess.com"]
[Source "ChessBase"]
[SourceQuality "1"]
[TimeControl "5400+30"]

1. Nf3 {[%emt 0:03:19]} Nf6 {[%emt 0:00:00]} 2. b3 {[%emt 0:00:27]} g6 {[%emt 0:00:36]} 3. Bb2 {[%emt 0:00:34]} Bg7 {[%emt 0:00:30]} 4. c4 {[%emt 0:00:30]} d6 {[%emt 0:01:07]} 5. d4 {[%emt 0:02:20]} O-O {[%emt 0:02:23]} 6. g3 {[%emt 0:01:03]} c5 {[%emt 0:04:01]} 7. Bg2 {[%emt 0:01:49]} Nc6 {[%emt 0:01:42]} 8. Nc3 {[%emt 0:09:08]} cxd4 {[%emt 0:05:02]} 9. Nxd4 {[%emt 0:00:23]} Bd7 {[%emt 0:00:26]} 10. Nc2 {[%emt 0:01:26]} Ne8 {[%emt 0:03:12]} 11. Qd2 {[%emt 0:02:49]} Nc7 {[%emt 0:01:08]} 12. O-O {[%emt 0:04:08]} b5 {[%emt 0:15:48]} 13. Ne3 {[%emt 0:11:58]} bxc4 {[%emt 0:01:41]} 14. Nxc4 {[%emt 0:00:31]} Rc8 {[%emt 0:02:56]} 15. Rac1 {[%emt 0:00:37]} Ne5 {[%emt 0:03:57]} 16. Na5 {[%emt 0:05:46]} Nb5 {[%emt 0:11:12]} 17. Nd5 {[%emt 0:04:20]} Rxc1 {[%emt 0:03:25]} 18. Rxc1 {[%emt 0:00:31]} e6 {[%emt 0:01:08]} 19. Ne3 {[%emt 0:07:03]} d5 {[%emt 0:06:00]} 20. f4 {[%emt 0:06:30]} d4 {[%emt 0:01:13]} 21. fxe5 {[%emt 0:01:17]} dxe3 {[%emt 0:00:23]} 22. Qb4 {[%emt 0:00:12]} Be8 {[%emt 0:08:47]} 23. a4 {[%emt 0:03:07]} Nc7 {[%emt 0:01:03]} 24. Nb7 {[%emt 0:08:04]} Qb8 {[%emt 0:02:37]} 25. Qd6 {[%emt 0:00:34]} 1-0